Cogmind - Beta 11 @@@ ROGUE MODE // 2022.04.08 @ 18:29:28 Player: Momo Result: Destroyed by as-71232 with Assembled Rifle Performance ------------- Evolutions (0) 0 Regions Visited (2) 400 Robots Destroyed (3) 15 Value Destroyed (144) 144 Prototype IDs (0) 0 Alien Tech Used (0) 0 Bonus (0) 0 TOTAL SCORE: 559 Bonus ------- None Cogmind --------- Core Integrity 0/250 Matter 256/300 Energy 65/100 System Corruption 5% Temperature Cool (0) Movement Hovering (80) Location -10/Mines Parts ------- > --- POWER (1) -------- (None) > --- PROPULSION (2) --- Combat Airjet > --- UTILITY (2) ------ Shock Absorption System > --- WEAPON (2) ------- Mini Grenade Launcher > --- INVENTORY (5) ---- Light Ion Engine Light Nuclear Core Small Storage Unit Assault Rifle Mining Laser Peak State ------------ > --- POWER ------------ (None) > --- PROPULSION ------- Combat Airjet > --- UTILITY ---------- Improved Light Armor Plating Shock Absorption System > --- WEAPON ----------- Mini Grenade Launcher > --- INVENTORY -------- Light Ion Engine Light Nuclear Core Small Storage Unit Assault Rifle Mining Laser [Rating: 14] Favorites ----------- Power Light Ion Engine Engine Light Ion Engine Propulsion Wheel Wheel Wheel Hover Unit Combat Airjet Utility Small Storage Unit Device Shock Absorption System Storage Small Storage Unit Protection Improved Light Armor Plating Weapon Light Assault Rifle Ballistic Gun Light Assault Rifle Launcher Grenade Launcher Special Weapon Enhanced Flamer Build | -11 -10 -10 ------- Run | Scr Mat Min Slots Evolved . | . . . Power . | . . . Propulsion . | . . . Utility . | . . . Weapon . | . . . Parts Attached 13 | 6 . 7 Power 2 | 1 . 1 Engine 2 | 1 . 1 Core . | . . . Reactor . | . . . Propulsion 3 | 2 . 1 Treads . | . . . Leg . | . . . Wheel 2 | 2 . . Hover 1 | . . 1 Flight . | . . . Utility 3 | 1 . 2 Device 1 | . . 1 Storage 1 | 1 . . Processor . | . . . Hackware . | . . . Protection 1 | . . 1 Artifact . | . . . Weapon 5 | 2 . 3 Energy Gun . | . . . Energy Cannon . | . . . Ballistic Gun 2 | 2 . . Ballistic Cannon . | . . . Launcher 2 | . . 2 Special Weapon 1 | . . 1 Impact Weapon . | . . . Slashing Weapon . | . . . Piercing Weapon . | . . . Special Melee Weapon . | . . . Unidentified Prototypes . | . . . Parts Lost 5 | . . 5 Power 1 | . . 1 Propulsion 2 | . . 2 Utility . | . . . Weapon 2 | . . 2 Highest Loss Streak 4 | . . 4 To Critical Strikes . | . . . Average Slot Usage (%) 70 | . 85 68 Engine 11 | . 14 11 Wheel 17 | . 28 15 Hover 1 | . . 2 Device 1 | . . 2 Storage 11 | . 14 11 Ballistic Gun 15 | . 28 14 Launcher 9 | . . 10 Naked Turns . | . . . Heaviest Build 14 | 11 11 14 Greatest Support 26 | 26 26 26 Greatest Overweight (x) 3 | . . 3 Average Overweight (x) . | . . . Largest Inventory Capacity 8 | 8 8 8 Average Capacity 7 | 7 8 7 Most Carried 5 | . 1 5 Average Carried 2 | . . 3 Final Capacity 8 | 8 8 5 Final Carried 5 | . 1 5 Class Distribution -------------------- 100% | Mutant Dominant Class ---------------- Mutant | -10/Materials Mutant | -10/Mines Resources | -11 -10 -10 ----------- Run | Scr Mat Min Matter Collected 403 | 187 . 216 Remotely . | . . . Salvage Created 122 | . . 122 Parts 5 | . . 5 Haulers Intercepted . | . . . Recyclers Shooed 1 | . . 1 Parts Field Recycled . | . . . Retrieved Matter . | . . . Parts Self-Destructed . | . . . Prevented . | . . . Kills | -11 -10 -10 ------- Run | Scr Mat Min Combat Hostiles Destroyed 13 | . . 13 Guns 3 | . . 3 AOE 10 | . . 10 Classes Destroyed 3 | . . 3 Grunt 2 | . . 2 Demolisher 1 | . . 1 Assembled 10 | . . 10 Best Kill Streak 11 | . . 11 Combat Bots Only 11 | . . 11 Max Kills in Single Turn 5 | . . 5 Gunslinging . | . . . Exploded 5 | . . 5 Melee . | . . . Uniques/NPCs Destroyed . | . . . Combat | -11 -10 -10 -------- Run | Scr Mat Min Damage Taken 663 | . . 663 Core 257 | . . 257 Absorbed by Shields . | . . . Core Remaining (%) 100 | 100 . . Volleys Fired 43 | . . 43 Largest 2 | . . 2 Hottest 110 | . . 110 Shots Fired 45 | . . 45 Gun 32 | . . 32 Cannon . | . . . Launcher 11 | . . 11 Special 2 | . . 2 Kinetic 32 | . . 32 Thermal 2 | . . 2 Explosive 11 | . . 11 Electromagnetic . | . . . Robot Hit Streak 6 | . . 6 Robot Miss Streak 2 | . . 2 Penetration Max . | . . . Secondary Targets . | . . . Shots Hit Robots 29 | . . 29 Core Hits 28 | . . 28 Critical Kills 1 | . . 1 Critical Parts Destroyed . | . . . Critical Strikes 1 | . . 1 Destroy 1 | . . 1 Melee Attacks . | . . . Impact . | . . . Slashing . | . . . Piercing . | . . . Sneak Attacks . | . . . Combat Hostiles . | . . . Follow-up Attacks . | . . . Damage Inflicted 903 | . . 903 Guns 184 | . . 184 Cannons . | . . . Explosions 697 | . . 697 Melee . | . . . Ramming . | . . . Kinetic 184 | . . 184 Thermal 22 | . . 22 Explosive 697 | . . 697 Electromagnetic . | . . . Impact . | . . . Slashing . | . . . Piercing . | . . . Highest Corruption 5 | . . 5 Average Corruption 5 | . . 5 Corruption Purged . | . . . Corruption Blocked . | . . . Effects 2 | . . 2 Message Errors 1 | . . 1 Parts Rejected 1 | . . 1 Overload Shots . | . . . Overflow Damage 32 | . . 32 Projectiles . | . . . Explosions 32 | . . 32 Melee . | . . . Knockbacks . | . . . Impact . | . . . Kinetic . | . . . Secondary . | . . . Self-Inflicted Damage 109 | . . 109 Shots 3 | . . 3 Rammed . | . . . Targets Rammed . | . . . Kicked . | . . . Crushed . | . . . Highest Temperature 88 | . . 88 Average Temperature 29 | . . 29 Received Heat Transfer 137 | . . 137 Siege Activations . | . . . Robots Corrupted . | . . . Combat Hostiles . | . . . Parts Fried . | . . . Impact Corruptions . | . . . Robots Melted . | . . . Combat Hostiles . | . . . Parts Melted . | . . . Heat Transferred 160 | . . 160 Parts Sabotaged . | . . . Parts Stolen . | . . . Parts Stripped . | . . . Power Chain Reactions . | . . . Missiles Intercepted . | . . . Alert | -11 -10 -10 ------- Run | Scr Mat Min Peak Influence 162 | . 15 162 Initial 5 | . . 5 Average 30 | . 11 37 Maximum Alert Level . | . . . Low Security (%) 100 | 100 100 100 Level 1 . | . . . Level 2 . | . . . Level 3 . | . . . Level 4 . | . . . Level 5 . | . . . High Security . | . . . Max Security . | . . . Squads Dispatched . | . . . Investigation . | . . . Extermination . | . . . Reinforcement . | . . . Assault . | . . . Garrison . | . . . Intercept . | . . . Searches Triggered . | . . . Construction Impeded . | . . . Haulers Reinforced . | . . . Active Scanning Responses . | . . . Cargo Convoy Interrupts . | . . . Stealth | -11 -10 -10 --------- Run | Scr Mat Min Distress Signals . | . . . Communications Jammed . | . . . Distress Signals . | . . . Times Spotted 24 | . 1 23 Peak Tracking Total 9 | . 1 9 Tactical Retreats 1 | . . 1 Traps | -11 -10 -10 ------- Run | Scr Mat Min Traps Triggered . | . . . Indirectly . | . . . Trap Hack Attempts . | . . . Triggered . | . . . Disarmed . | . . . Reprogrammed . | . . . Reused . | . . . Traps Extracted . | . . . Installed . | . . . Triggered . | . . . Machines | -11 -10 -10 ---------- Run | Scr Mat Min Machines Disabled 1 | . . 1 Max in Single Turn 1 | . . 1 Machines Sabotaged . | . . . Garrisons Compromised . | . . . Overloaded Fab Kills . | . . . Hacking | -11 -10 -10 --------- Run | Scr Mat Min Machines Accessed 1 | . 1 . Terminals 1 | . 1 . Fabricators . | . . . Repair Stations . | . . . Recycling Units . | . . . Scanalyzers . | . . . Garrison Access . | . . . Total Hacks 3 | . 3 . Successful 1 | . 1 . Failed 2 | . 2 . Catastrophic . | . . . Database Lockouts . | . . . Manual . | . . . Terminals 3 | . 3 . Fabricators . | . . . Repair Stations . | . . . Recycling Units . | . . . Scanalyzers . | . . . Garrison Access . | . . . Terminal Hacks 1 | . 1 . Locate Traps 1 | . 1 . Fabricator Hacks . | . . . Repair Station Hacks . | . . . Recycling Unit Hacks . | . . . Scanalyzer . | . . . Garrison Access Hacks . | . . . Unauthorized Hacks . | . . . Terminals . | . . . Fabricators . | . . . Repair Stations . | . . . Recycling Units . | . . . Scanalyzers . | . . . Garrison Access . | . . . Data Cores Recovered . | . . . Used . | . . . Hacking Detections 1 | . 1 . Full Trace Events . | . . . Feedback Events . | . . . Feedback Blocked . | . . . Robot Schematics Acquired . | . . . Robots Built . | . . . Authchips . | . . . Time . | . . . Total Robot Build Rating . | . . . Part Schematics Acquired . | . . . Parts Built . | . . . Authchips . | . . . Time . | . . . Total Part Build Rating . | . . . Parts Repaired . | . . . Time . | . . . Parts Recycled . | . . . Recycled Matter . | . . . Retrieved Matter . | . . . Retrieved Components . | . . . Parts Scanalyzed . | . . . Part Schematics Acquired . | . . . Parts Damaged . | . . . Bothacking | -11 -10 -10 ------------ Run | Scr Mat Min Used RIF Installer . | . . . Robots Hacked . | . . . Non-combat . | . . . Combat . | . . . Robot Hacks Applied . | . . . Relay Couplers Released . | . . . Fabnet Peak Effective % . | . . . Robots Rewired . | . . . Allies Hacked . | . . . Hacks Repelled . | . . . Allies | -11 -10 -10 -------- Run | Scr Mat Min Total Allies . | . . . Largest Group . | . . . Highest-Rated Group . | . . . Highest-Rated Ally . | . . . Total Orders . | . . . Ally Attacks . | . . . Total Damage . | . . . Kills . | . . . Allies Corrupted . | . . . Allies Melted . | . . . Intel | -11 -10 -10 ------- Run | Scr Mat Min Robot Analysis Total . | . . . Derelict Logs Recovered . | . . . Drone Launches . | . . . Drone Recoveries . | . . . Exploration | -11 -10 -10 ------------- Run | Scr Mat Min Turns Passed 421 | 43 54 324 Spaces Moved 350 | 40 59 251 Core 14 | 5 . 9 Treads . | . . . Legs . | . . . Wheels 299 | 35 59 205 Hover 37 | . . 37 Flight . | . . . Fastest Speed 50 | 50 90 50 Average Speed 89 | 87 90 89 Slowest Speed 200 | 100 90 200 Overloaded Moves . | . . . Propulsion Burnouts . | . . . Robots Hopped . | . . . Cave-ins Triggered . | . . . Exploration Rate (%) 29 | 4 20 63 Regions Visited 2 Branch Regions 1 Pre-discovered Areas . | . . . Known Exits Taken . | . . . Unknown Exits Taken 2 | 1 1 . Scrap Searched . | . . . Spaces Dug . | . . . Terrain Destroyed 54 | . . 54 Melee . | . . . Projectile . | . . . AOE 54 | . . 54 Terrain Rammed . | . . . Walls Destroyed . | . . . Machines Disabled . | . . . Actions | -11 -10 -10 --------- Run | Scr Mat Min Total 410 | 45 59 306 Wait . | . . . Move 348 | 39 58 251 Hop . | . . . Pick Up 4 | . 1 3 Fast Attach 10 | 6 . 4 Attach 1 | . . 1 Detach 1 | . . 1 Swap 2 | . . 2 Drop 1 | . . 1 Fire 43 | . . 43 Melee . | . . . Ram . | . . . Kick . | . . . Crush . | . . . Escape Stasis . | . . . Rewire . | . . . Trap . | . . . Miscellaneous . | . . . Route ------- -11/Scrapyard -10/Materials -10/Mines History --------- Turn | Location | Event 13 | -11/Scrapyard | Discovered new exit (range 16) 44 | -11/Scrapyard | Entered Materials 77 | -10/Materials | Discovered new exit (range 15) 98 | -10/Materials | Entered Mines 108 | -10/Mines | YI-UF0 nonchalantly dropped a Grenade Launcher on the ground 196 | -10/Mines | Deemed a non-threat by the Exiles lab entrance 224 | -10/Mines | A weapon hastily lodged in a ceiling crevice suddenly fell to the ground 306 | -10/Mines | Build established: Mutant 319 | -10/Mines | Assembled infested the area 324 | -10/Mines | Assisted by a Guerilla fighting off Assembled 369 | -10/Mines | Core integrity fell below 50% 393 | -10/Mines | Core integrity fell below 20% 395 | -10/Mines | Lost 4 parts (1p1n2w) 418 | -10/Mines | Destroyed 11 combat bots 422 | -10/Mines | Destroyed by as-71232 with Assembled Rifle Last Messages --------------- 00374_ The unstable cave ceiling collapses. 00375_ Acquired 20 matter. 00377_ Acquired Shock Absorption System. 00379_ The unstable cave ceiling collapses. 00379_ Acquired Imp. Light Armor Plating. 00383_ Destroyed Asb. F-torch. 00383_ as-01471 destroyed. 00385_ System corrupted: Imp. Light Armor Plating rejected. 00385_ as-21720 destroyed. 00385_ Destroyed Asb. Hover Unit. 00387_ The unstable cave ceiling collapses. 00387_ Acquired 89 matter. 00395_ The unstable cave ceiling collapses. 00397_ as-98413 destroyed. 00399_ R-06 Scavenger collects Imp. Light Armor Plating. 00400_ The unstable cave ceiling collapses. 00412_ Acquired 10 matter. 00414_ The unstable cave ceiling collapses. 00418_ Laser Drill disabled. 00421_ The unstable cave ceiling collapses. Map ----- +----------------------------------------------------+ | | | | | | | | | | | | | ?????????????????????????????? | | ?????????????????????????????? | | ?????????????????????????????? | | ?????????????????????????????? | | ??? ?????????????????????? | | ?## ?????????????????????? | | ?# ?????????????????????? | | ?? ?????????????????????? | | ?? ##???????????????????? | | ??# ###????????????????? | | ?? ?? ????????????????? | | ??? ?? ????????????????? | | ??? ?? ??###?#######???? | | ??? a??? ??# ?? ????? | | ???# ??? ??# ##### ###???? | | ???# ???# #### # ###?? | | ???# #???# ## # ##? | | ???# #???# ## #? | | ???# ##### # ## | | ???# @ a | | ???######### ## | | ???????????## # # #? | | ????????##### # # | | ????????# ## ## | | ????????# ##### ### #####? | | ????????# #???####?# #????? | | ????????# #????????# #????? | | ????????# #????????### ##????? | | ????????# #??????????# #?????? | | ????????# ###????????# #?????? | | ???????## ###??????# #?????? | | ???????# ###????# #?????? | | ???????# ###??# #?????? | | ???????## #??# #?????? | | ????????# ## #?? ??????? | | ????????# ### #????????? | | ????????# #?## #????????? | | ???###### #???# ##????????? | | ??## #????####?????????? | | ??# ##????????????????? | | ??# #????????????????? | | ?## #??????????###???? | | ?# ##????????? #???? | | ?# #?????????# #???? | +----------------------------------------------------+ Best States ------------- Heat Dissipation 25 Energy Generation 10 Energy Capacity 250 Matter Stores 296 Matter Capacity 300 Sight Range 16 Terrain Scan Density 10 Armor Coverage 150 Resistance: EX 25 Evasion (%) 49 Item Schematics ----------------- None Robot Schematics ------------------ None Fabricated ------------ Nothing Alien Tech Used ----------------- None Achievements -------------- None Challenges ------------ None Game ------ Seed BehemothStormCalibrator Manual? 0 Play Time 00:07:09 Cumulative 219.4 hours Start 2022.04.08 @ 18:25:30 End 2022.04.08 @ 18:29:28 Sessions 1 Manual Loads 0 Difficulty Rogue Special Mode None Game No. 104 Rogue 100 Adventurer 0 Explorer 4 Win Type - Total 13 Types 4/0/2/2/1/2/2/0/0 Lore% 68 Gallery% 74 Achievement% 67 Wizard Run 0 Options --------- ASCII 0 Keyboard 0 Movement Mouse Keybinds 0 Fullscreen 1 Font 18/SmallcapsGlow Map View 76x50 Tactical HUD 1 Map Filters NONE Filters NONE Steam 1 RUN: 2d39203e-b3f8-409c-a9f8-5de72ed7243a